Cogmind - Beta 16.1 @@@ ROGUE MODE // 2026.03.11 @ 16:42:18 Player: +Jones Result: Smashed by cave-in Performance ------------- Evolutions (8) 4000 Regions Visited (26) 5200 Robots Destroyed (377) 1885 Value Destroyed (15788) 15788 Prototype IDs (49) 980 Alien Tech Used (4) 800 Bonus (6742) 6742 TOTAL SCORE: 35395 Bonus ------- High Alert Combat Kills 778 Follower Combat Kills 1904 Awakened Behemoth Slayer 1000 Entered DSFs 500 Network Hubs Disabled 200 Acquired ECA 300 Met Zhirov 300 Built Enhanced Grunts 300 A7 Reached Mainframe 300 Met R17 at Cetus 500 Met R17 at Research 2000 Friendly Fire -1340 Cogmind --------- Core Integrity 0/1450 Matter 295/300 Energy 150/150 System Corruption 49% Temperature Cool (0) Movement Rolling (130) Ox2 Location -2/Testing Parts ------- > --- POWER (2) -------- Micro Antimatter Reactor > --- PROPULSION (6) --- Biometal Heavy Treads Compact Wheel Compact Wheel Compact Wheel Compact Wheel > --- UTILITY (10) ----- Huge Storage Unit Makeshift Sensor Array Advanced Signal Interpreter Advanced Target Analyzer SHELL Armor Advanced Remote Force Field > --- WEAPON (5) ------- Advanced Remote Datajack Falx Force Lance > --- INVENTORY (25) --- Particle Reactor Light Quantum Reactor Medium Treads Compact Wheel Compact Wheel Compact Wheel Centrium Wheel Advanced Heat Sink Advanced Energy Well (500) Long-range Terrain Scanner Advanced Target Analyzer Advanced Phase Shifter Medium Regenerative Plating Improved Point Defense System Advanced System Shield Long-range Tractor Beam Enhanced Nova Cannon Mini Smartbomb Launcher Micro-nuke Launcher Improved Plasma Cutter CR-A16's Behemoth Slayer GAL Module Peak State ------------ > --- POWER ------------ Fusion Reactor Antimatter Reactor > --- PROPULSION ------- Advanced Heavy Treads Advanced Heavy Treads Improved Heavy Siege Treads > --- UTILITY ---------- Huge Storage Unit Makeshift Sensor Array Advanced Signal Interpreter Advanced Transmission Jammer Makeshift Ablative Armor Phase Armor Advanced Force Field Experimental Hacking Suite Advanced Corruption Screen > --- WEAPON ----------- Enhanced Nova Cannon KE Penetrator Railgun Railgun Advanced KE Penetrator > --- INVENTORY -------- Particle Reactor Light Particle Reactor Advanced Heavy Treads Advanced Heavy Treads Advanced Cooling System Advanced Energy Well Experimental Matter Compressor Long-range Terrain Scanner Improved Kinecellerator Centrium Medium Armor Plating Makeshift Ablative Armor Improved Point Defense System Long-range Tractor Beam Transdimensional Reconstructor Heavy Battle Rifle Light Antimatter Cannon Linear Accelerator Thermoblaster Micro-nuke Launcher Improved Plasma Cutter Force Lance CR-A16's Behemoth Slayer GAL Module [Rating: 195] Favorites ----------- Power Reinforced Deuterium Engine Engine Reinforced Deuterium Engine Power Core Neutrino Core Reactor Fusion Reactor Propulsion Armored Treads Treads Armored Treads Leg Carbon-fiber Leg Wheel Wheel Hover Unit Antigrav System Utility Huge Storage Unit Device Advanced Sensor Array Storage Huge Storage Unit Processor Advanced Signal Interpreter Hackware Improved Hacking Suite Protection Gun Armor Artifact Phase Armor Weapon KE Penetrator Energy Gun EM Shotgun Energy Cannon Heavy Plasma Cannon Ballistic Gun KE Penetrator Ballistic Cannon Heavy Gauss Cannon Launcher Heavy Rocket Launcher Special Weapon Plasma Flamer Impact Weapon Heavy Hammer Slashing Weapon Axe Piercing Weapon Force Lance Build | -11 -10 -10 -8 -7 -7 -6 -6 -6 -6 -5 -5 -5 -5 -5 -5 -4 -4 -4 -4 -4 -4 -3 -3 -3 -2 -2 ------- Run | Yrd Mat Sub Mat Fac DSF Fac Low Low Zio Pro Fac Ext Cet Arc Hub Fac Was Fac Upp Upp Zhi Pro Res Qua Res Tes Slots Evolved 16 | . . . 4 2 . 2 . . . . 2 . . . . 2 . . . . . . 2 . 2 . Power 1 | . . . . . . . . . . . 1 . . . . . . . . . . . . . . . Propulsion 4 | . . . 1 1 . 2 . . . . . . . . . . . . . . . . . . . . Utility 8 | . . . 1 1 . . . . . . 1 . . . . 2 . . . . . . 1 . 2 . Weapon 3 | . . . 2 . . . . . . . . . . . . . . . . . . . 1 . . . Parts Attached 306 | 7 8 11 34 1 9 17 15 11 6 22 21 13 5 1 . 2 10 23 10 2 6 5 16 7 34 10 Power 29 | 1 2 . 3 . 1 1 2 1 . 1 1 3 . 1 . . 1 4 1 . 1 1 . . 3 1 Engine 12 | 1 2 . 3 . 1 1 1 1 . 1 . 1 . . . . . . . . . . . . . . Core 9 | . . . . . . . 1 . . . 1 2 . . . . . 4 1 . . . . . . . Reactor 8 | . . . . . . . . . . . . . . 1 . . 1 . . . 1 1 . . 3 1 Propulsion 65 | 2 . 3 5 1 4 6 6 5 . 4 5 . 1 . . . 4 3 2 . . 1 3 1 5 4 Treads 48 | 2 . 3 4 1 4 6 3 1 . 2 3 . 1 . . . 3 3 2 . . 1 3 1 5 . Leg 8 | . . . . . . . 2 4 . 2 . . . . . . . . . . . . . . . . Wheel 8 | . . . 1 . . . 1 . . . 2 . . . . . . . . . . . . . . 4 Hover 1 | . . . . . . . . . . . . . . . . . 1 . . . . . . . . . Flight . | . . . . . . . . . . . . . . . . . . . . . . . . . . . Utility 104 | 2 2 2 10 . 4 6 2 2 2 5 9 4 2 . . 2 1 8 3 . 5 3 9 3 15 3 Device 47 | 1 1 . 2 . 1 4 . 1 . 3 5 1 . . . 1 1 5 2 . 2 2 3 1 10 1 Storage 10 | 1 1 . 1 . 1 . . . 1 . . 1 . . . . . 1 . . 1 . 2 . . . Processor 13 | . . . . . 1 1 1 . 1 . 3 . . . . . . . . . . . 2 1 3 . Hackware 8 | . . . 2 . . 1 . . . . 1 . . . . 1 . . . . 1 . 2 . . . Protection 25 | . . 2 5 . 1 . 1 1 . 2 . 2 2 . . . . 2 1 . 1 1 . . 2 2 Artifact 1 | . . . . . . . . . . . . . . . . . . . . . . . . 1 . . Weapon 108 | 2 4 6 16 . . 4 5 3 4 12 6 6 2 . . . 4 8 4 2 . . 4 3 11 2 Energy Gun 19 | 2 2 2 5 . . . 1 1 . 4 1 . . . . . . . . 1 . . . . . . Energy Cannon 8 | . . . . . . 1 1 . . 1 1 . . . . . . . . . . . 2 1 1 . Ballistic Gun 41 | . . 2 5 . . 1 1 1 . 2 4 3 1 . . . 4 6 1 . . . 2 1 6 1 Ballistic Cannon 9 | . . . 4 . . . . 1 1 . . . . . . . . . 2 1 . . . . . . Launcher 9 | . 1 . . . . 1 . . . 3 . 1 . . . . . . . . . . . . 3 . Special Weapon 6 | . 1 1 . . . . 1 . 1 . . 1 . . . . . . . . . . . . . 1 Impact Weapon 2 | . . 1 1 . . . . . . . . . . . . . . . . . . . . . . . Slashing Weapon 9 | . . . 1 . . 1 1 . 1 . . 1 1 . . . . 2 . . . . . . 1 . Piercing Weapon 5 | . . . . . . . . . 1 2 . . . . . . . . 1 . . . . 1 . . Special Melee Weapon . | . . . . . . . . . . . . . . . . . . . . . . . . . . . Unidentified Prototypes 22 | . . . . . . 1 . . . . 2 2 2 . . . . 2 . . 4 . 2 2 3 2 Corrupted Parts 2 | . . 1 . . . . . 1 . . . . . . . . . . . . . . . . . . System Corruption 13 | . . 1 . . . . . 12 . . . . . . . . . . . . . . . . . . Parts Lost 81 | . 1 5 4 . 2 13 3 7 . 3 2 1 . . . . 5 3 . . . 1 . . 25 6 Power 9 | . . . . . . 1 1 . . . . . . . . . 2 1 . . . . . . 3 1 Propulsion 22 | . . 2 1 . . 6 . 4 . 3 . . . . . . . . . . . . . . 4 2 Utility 20 | . 1 2 . . 2 1 . . . . 1 1 . . . . . 1 . . . . . . 10 1 Weapon 30 | . . 1 3 . . 5 2 3 . . 1 . . . . . 3 1 . . . 1 . . 8 2 Highest Loss Streak 8 | . 1 2 1 . 2 7 3 4 . 2 1 1 . . . . 5 2 . . . 1 . . 8 3 To Critical Strikes 2 | . . . . . . . . . . . . . . . . . . . . . . . . . 2 . Average Backups 19 | 1 11 13 18 17 18 22 21 21 20 20 21 22 21 21 22 20 20 20 20 20 19 19 21 21 18 18 Power . | . . . . . . . 1 . . . . . . . . . . . . . . . . 1 1 2 Propulsion 2 | . . . 5 4 4 3 2 4 . . 1 2 2 2 2 2 3 3 3 3 3 2 2 2 1 3 Utility 9 | . 3 5 7 8 8 12 12 11 11 10 12 11 10 11 12 10 11 10 9 10 9 9 9 10 7 7 Weapon 5 | . 7 6 3 4 4 3 2 2 6 5 5 6 6 6 6 6 4 4 5 5 5 5 6 6 6 4 Tool/Special . | . . . . . . . . . . . . . . . . . . . . . . . . . . . Unused Backups 63 | . 5 3 6 . 3 3 . 1 3 . . 6 4 . . . . 4 . 1 . . 8 1 4 11 Power 5 | . . 1 . . . . . . . . . 1 . . . . . 1 . . . . . . . 2 Propulsion 15 | . 1 1 . . . . . . . . . . 1 . . . . . . . . . 7 . . 5 Utility 30 | . 1 1 5 . 1 3 . 1 3 . . 4 2 . . . . 1 . . . . 1 1 2 4 Weapon 13 | . 3 . 1 . 2 . . . . . . 1 1 . . . . 2 . 1 . . . . 2 . Tool/Special . | . . . . . . . . . . . . . . . . . . . . . . . . . . . Average Slot Usage (%) 91 | . 96 98 96 98 98 97 94 94 98 97 78 82 83 83 83 83 76 84 89 94 82 89 85 83 78 69 Engine 5 | . 14 14 9 7 7 5 5 6 6 6 7 3 5 . . . 1 2 . . . . . . . . Core 2 | . . . . . . . . . . . 2 6 5 5 5 4 . 6 10 10 8 3 . . . . Reactor 1 | . . . . . . . . . . . . . . 4 5 4 4 . . . 1 6 9 9 7 7 Treads 19 | . 28 27 23 30 30 39 36 31 . 2 11 16 14 15 15 12 14 15 21 26 26 21 15 14 12 10 Leg 5 | . . . . . . . . 5 40 36 7 . . . . . . . . . . . . . . . Device 9 | . 10 11 10 7 9 5 3 5 6 5 9 5 5 5 5 11 10 10 8 10 9 14 18 14 14 14 Storage 6 | . 14 14 9 7 7 6 6 6 6 6 5 5 5 5 5 4 4 5 5 5 5 5 4 4 5 4 Processor 5 | . . . . . 5 11 13 13 13 6 8 6 5 5 5 4 4 5 5 5 5 5 8 9 8 8 Hackware 1 | . . . . 7 1 . . . . . 2 5 2 . . 2 4 5 5 5 5 5 4 4 2 . Protection 4 | . . 2 6 5 3 1 2 . . 6 . 3 7 10 10 9 9 9 11 10 10 5 . 1 2 5 Energy Gun 3 | . 24 15 4 . . . 3 8 2 4 3 . . . . . . . . . . . . . . . Ballistic Gun 12 | . . 1 25 . . . 6 3 5 14 7 24 30 31 26 23 10 17 13 7 . 6 17 19 14 4 Ballistic Cannon 2 | . . . . 27 30 18 . . 9 1 . . . . . . . . 2 10 . 9 . . . . Slashing Weapon 1 | . . . 1 2 . 5 6 6 5 . . . . . . . . . . . . . . . . 1 Peak Build Rating 195 | 7 12 15 40 46 51 61 61 64 70 76 103 118 128 131 131 138 136 133 128 125 127 135 162 180 195 179 Average Rating 81 | 5 9 12 28 44 48 57 55 57 66 63 88 107 123 130 129 134 113 121 124 124 107 130 153 166 173 155 On Entrance 89 | . 7 12 14 40 45 51 37 60 64 70 68 102 118 127 131 130 138 110 119 125 125 124 135 160 180 137 Avg Prop Armor Cover (%) 11 | . . . 14 . . . 1 6 . 8 22 . . . . . . . . . . . . . 7 6 Naked Turns . | . . . . . . . . . . . . . . . . . . . . . . . . . . . Heaviest Build 213 | 13 34 36 78 81 133 131 122 112 121 135 137 157 160 163 168 176 168 146 161 161 161 167 169 195 213 211 Greatest Support 220 | 40 40 40 66 86 86 130 136 136 100 101 210 210 210 210 210 210 210 210 186 172 172 201 215 215 220 145 Greatest Overweight (x) 13 | . . 1 6 . 1 1 1 1 1 1 13 . . . 1 . . . 1 . . . 1 1 1 6 Average Overweight (x) . | . . . 2 . . . . . . . 1 . . . . . . . . . . . . . . 1 Largest Inventory Capacity 25 | 8 15 15 20 20 25 25 25 25 25 25 25 25 25 25 25 25 25 25 25 25 25 25 25 25 25 25 Average Capacity 23 | 7 14 15 19 20 21 24 25 24 25 25 25 25 25 25 25 25 25 25 25 25 25 25 25 25 25 25 Most Carried 25 | 4 15 15 20 19 22 25 25 25 25 25 25 25 25 25 25 24 25 25 25 25 25 25 25 25 25 23 Average Carried 22 | 1 11 14 19 17 19 24 23 23 24 24 23 24 24 24 25 23 24 24 24 24 24 24 24 24 21 19 Final Capacity 25 | 8 15 15 20 20 25 25 25 20 25 25 25 25 25 25 25 25 25 25 25 25 25 25 25 25 25 25 Final Carried 25 | 4 15 14 20 18 22 19 25 20 25 25 25 25 24 25 25 24 25 25 25 25 25 25 25 25 18 22 Class Distribution -------------------- 22% | Scavenger-Tank 15% | Scavenger-Skirmisher 15% | Mutant 10% | Tank 7% | Derelict-Skirmisher 7% | Scavenger-Gunner 5% | Commander-Executioner 5% | Gunner 3% | Scavenger-Mutant Dominant Class ---------------- Mutant | -10/Materials Mutant | -10/Subcaves Scavenger-Tank | -8/Materials Scavenger-Tank | -7/Factory Gunner | -7/DSF Gunner | -6/Factory Scavenger-Skirmisher | -6/Lower Caves Scavenger-Skirmisher | -6/Lower Caves Scavenger-Skirmisher | -6/Zion Scavenger-Skirmisher | -5/Proximity Caves Skirmisher | -5/Factory Tank | -5/Extension Commander-Executioner | -5/Cetus Commander-Executioner | -5/Archives Commander-Executioner | -5/Hub_04(d) Scavenger-Executioner | -4/Factory Scavenger-Tank | -4/Waste Scavenger-Tank | -4/Factory Scavenger-Tank | -4/Upper Caves Scavenger-Tank | -4/Upper Caves Scavenger-Mutant | -4/Zhirov Derelict-Skirmisher | -3/Proximity Caves Derelict-Skirmisher | -3/Research Tank | -3/Quarantine Tank | -2/Research Scavenger-Mutant | -2/Testing Resources | -11 -10 -10 -8 -7 -7 -6 -6 -6 -6 -5 -5 -5 -5 -5 -5 -4 -4 -4 -4 -4 -4 -3 -3 -3 -2 -2 ----------- Run | Yrd Mat Sub Mat Fac DSF Fac Low Low Zio Pro Fac Ext Cet Arc Hub Fac Was Fac Upp Upp Zhi Pro Res Qua Res Tes Matter Collected 19335 | 270 345 457 1471 . 704 1449 1127 256 171 1009 504 1360 358 142 147 . 780 2017 741 195 440 946 1096 585 2574 191 Remotely 3173 | . . . . . . 474 . . . . 82 174 . . . . 605 780 . . . . . . 1058 . Salvage Created 19454 | 171 803 354 2018 . 349 1707 693 225 70 716 392 1409 412 218 174 . 1616 1584 537 152 440 700 97 683 2916 1018 Parts 912 | 14 55 29 121 . 20 95 22 8 2 34 15 72 16 13 9 . 23 85 34 3 26 23 3 37 117 36 Haulers Intercepted 9 | . 1 . 5 . 1 1 . . . . . . . . . . . . . . . . . . 1 . Recyclers Shooed 13 | . . . . . . 5 . . . . 1 1 . . . . . 4 . . . . . . 2 . Parts Field Recycled . | . . . . . . . . . . . . . . . . . . . . . . . . . . . Retrieved Matter . | . . . . . . . . . . . . . . . . . . . . . . . . . . . Parts Self-Destructed 75 | . . 8 . . . . 13 . 6 16 . . . . . . . . 2 2 14 14 . . . . Prevented 12 | . . 2 . . . . 2 . . 8 . . . . . . . . . . . . . . . . Parts Restored . | . . . . . . . . . . . . . . . . . . . . . . . . . . . Kills | -11 -10 -10 -8 -7 -7 -6 -6 -6 -6 -5 -5 -5 -5 -5 -5 -4 -4 -4 -4 -4 -4 -3 -3 -3 -2 -2 ------- Run | Yrd Mat Sub Mat Fac DSF Fac Low Low Zio Pro Fac Ext Cet Arc Hub Fac Was Fac Upp Upp Zhi Pro Res Qua Res Tes Combat Hostiles Destroyed 271 | . 19 13 34 . 9 34 18 3 . 18 7 21 4 . 1 . 6 17 6 . . 9 1 11 33 7 Melee 20 | . . . . . . 5 5 2 . . . . . . . . . . . . . . . . 1 7 Guns 128 | . 14 7 27 . . . . . . 3 5 13 4 . 1 . 3 17 1 . . 1 1 11 20 . Cannons 29 | . . . . . 9 15 . 1 . 3 . . . . . . . . . . . 1 . . . . AOE 90 | . 5 5 6 . . 14 13 . . 10 2 8 . . . . 3 . 5 . . 7 . . 12 . Classes Destroyed 28 | 2 7 3 4 . 2 . 2 . . 2 . . . . . . 2 . 1 . . 1 . 1 . 1 Worker 14 | . 2 . 3 . . 3 . . . . . . . . . . . 1 . . . . . 1 4 . Builder 23 | . 1 . 4 . . 5 . . . . 3 1 . . . . . 5 . . . . . . 3 1 Tunneler 7 | 3 2 . 1 . . 1 . . . . . . . . . . . . . . . . . . . . Hauler 9 | . 1 . 5 . 1 1 . . . . . . . . . . . . . . . . . . 1 . Recycler 18 | 1 . . 4 . . 4 . . . . . 3 . . . . . 2 . . . . . . 1 3 Minesweeper 2 | . . . . . . . . . . 1 . . . . . . . . . 1 . . . . . . Mechanic 2 | . . . . . . . . . . . . . . . . . . . . . . . . 1 1 . Operator 6 | . 1 . . . . . . . . . . . . 3 . . . 1 . . . . . . 1 . Drone 2 | . . . . . . . . . . . . . . . . . . . . . . 2 . . . . Watcher 17 | . 3 . 5 . . 2 . . . . . 1 1 . 1 . . 1 . . . . . 1 2 . Swarmer 63 | . 6 5 7 . . 13 3 . . 6 . 8 . . . . . . 5 . . 5 . 5 . . Grunt 82 | . 13 . 12 . 3 12 9 . . 8 2 4 . . . . . 6 . . . . . . 10 3 Brawler 3 | . . . . . . . 2 . . 1 . . . . . . . . . . . . . . . . Duelist 4 | . . . 2 . . . 2 . . . . . . . . . . . . . . . . . . . Protector 1 | . . . 1 . . . . . . . . . . . . . . . . . . . . . . . Researcher 1 | . . . . . . . . . . . . . . . . . . . . . . . . . . 1 Sentry 32 | . . 1 9 . . 2 2 1 . 1 . 6 . . 1 . . 3 . . . 1 1 . 4 . Specialist 10 | . . . 2 . 3 . . . . . . . . . . . . . . . . . . . 5 . Hunter 15 | . . . 1 . 1 2 . 1 . . 3 1 . . . . . . . . . . . . 6 . Programmer 36 | . . . . . 1 5 . 1 . 1 2 . . . . . . 8 . . . 1 . 6 7 4 Heavy 2 | . . . . . 1 . . . . . . . . . . . . . . . . . . . 1 . Behemoth 3 | . . . . . . . . . . 1 . 2 . . . . . . . . . . . . . . Compactor 6 | . . . . . . . . . . . . . . . . . 6 . . . . . . . . . Cetus Guard 4 | . . . . . . . . . . . . . 4 . . . . . . . . . . . . . Enhanced Grunt 1 | . . . . . . . . . . . . . . 1 . . . . . . . . . . . . Artisan 1 | . . 1 . . . . . . . . . . . . . . . . . . . . . . . . Subdweller 7 | . . 7 . . . . . . . . . . . . . . . . . . . . . . . . Decomposer 7 | . . . . . . . . . . . . . . . . . . . . 3 . 4 . . . . Packrat 1 | . . . . . . . 1 . . . . . . . . . . . . . . . . . . . Samaritan 14 | . . . . . . . 1 3 . . . . . . . . . . 8 2 . . . . . . Thug 1 | . . . . . . . . . . . . 1 . . . . . . . . . . . . . . Savage 2 | . . . . . . . . . . 1 . . . . 1 . . . . . . . . . . . Martyr 2 | . . . . . . . . . . . . . . . . . 2 . . . . . . . . . Guerrilla 1 | . . . . . . . . . . . . . 1 . . . . . . . . . . . . . Mutant 1 | . . . . . . . . . . . . . . . . . . . 1 . . . . . . . Best Kill Streak 19 | 4 5 4 9 . 5 19 4 1 . 4 2 8 3 3 1 . 3 8 5 1 . 5 1 7 8 2 Combat Bots Only 12 | . 4 4 7 . 4 12 4 1 . 4 2 8 2 . 1 . 3 6 5 . . 5 1 5 5 2 Max Kills in Single Turn 5 | 1 4 2 4 . 2 4 2 1 . 2 1 5 2 1 1 . 1 3 2 1 . 2 1 2 2 1 Gunslinging 1 | . . . 1 . . . . . . . . . 1 . . . . 1 . . . . . . 1 . Exploded 5 | . 3 2 2 . . 4 2 . . 2 1 5 . . . . 1 . 2 . . 2 . . 2 . Melee 1 | . . . . . . 1 1 1 . . . . . . . . . . . . . . . . 1 1 Uniques/NPCs Destroyed . | . . . . . . . . . . . . . . . . . . . . . . . . . . . Combat | -11 -10 -10 -8 -7 -7 -6 -6 -6 -6 -5 -5 -5 -5 -5 -5 -4 -4 -4 -4 -4 -4 -3 -3 -3 -2 -2 -------- Run | Yrd Mat Sub Mat Fac DSF Fac Low Low Zio Pro Fac Ext Cet Arc Hub Fac Was Fac Upp Upp Zhi Pro Res Qua Res Tes Hostile Shots Fired 2009 | . 49 53 154 . 47 322 108 66 . 97 38 75 14 . 41 . 5 114 24 . . 25 18 58 516 185 Missed 515 | . 14 20 40 . 14 103 38 17 . 29 11 17 4 . 8 . . 23 6 . . 3 10 7 109 42 Hits 1494 | . 35 33 114 . 33 219 70 49 . 68 27 58 10 . 33 . 5 91 18 . . 22 8 51 407 143 Melee 23 | . . . 5 . . . 9 . . . . . . . 1 . 5 . . . . . . . 3 . Projectile 1471 | . 35 33 109 . 33 219 61 49 . 68 27 58 10 . 32 . . 91 18 . . 22 8 51 404 143 Critical Strikes 82 | . . 2 7 . 2 7 3 . . 1 1 5 1 . 3 . 2 9 . . . 1 . . 24 14 Part Disruptions 7 | . . . . . . . . 1 . . . . . . 1 . . 1 . . . . . 2 . 2 Damage Taken 30887 | . 371 727 1726 . 857 3206 1511 594 . 1710 409 1280 266 . 778 . 372 2166 242 . . 530 141 690 10079 3232 Core 2574 | . 54 37 193 . 66 187 115 21 . 81 1 63 28 . 46 . . 163 33 . . 27 . 11 1321 127 Absorbed by Shields 1964 | . . . . . . . . . . . . . . . . . . . . . . . 57 550 1192 165 Reduced by Siege Mode 1174 | . . . . . . . . . . . . 102 22 . . . 84 108 3 . . . 8 77 751 19 Redirected to Core 837 | . . . . . . . . . . . . . . . . . . . . . . . . 11 826 . Regen/Repaired (Parts) 1438 | . . . 63 . . . . . . . 266 . . . . 417 12 19 . . . . . . . 661 Core Remaining (%) 79 | 100 . 63 64 . 90 . . . . 52 . . . . 86 . . . . . . 80 . 99 . . Volleys Fired 925 | 6 43 49 106 . 21 61 38 15 . 68 53 51 10 11 11 1 22 70 12 4 45 17 37 26 148 . Largest 6 | 2 2 2 4 . 4 4 2 1 . 4 4 6 6 3 6 1 6 4 4 4 1 4 4 5 5 . Hottest 260 | 80 100 100 182 . 160 160 91 100 . 144 250 198 198 101 257 90 206 128 130 172 30 172 136 171 260 . Shots Fired 2169 | 12 75 70 286 . 84 146 43 23 . 114 55 180 60 33 28 1 97 239 28 17 45 27 46 98 361 1 Gun 1501 | 12 64 44 276 . . 7 10 8 . 46 16 173 60 33 20 . 87 229 22 8 . 8 12 90 275 1 Cannon 428 | . . . . . 84 123 6 1 . 49 34 4 . . 8 1 2 10 3 9 . 12 34 8 40 . Launcher 158 | . 9 5 10 . . 16 27 . . 19 5 3 . . . . 8 . 3 . . 7 . . 46 . Special 82 | . 2 21 . . . . . 14 . . . . . . . . . . . . 45 . . . . . Kinetic 1565 | . . . 216 . 84 126 10 5 . 81 4 173 60 33 20 . 87 229 22 17 . 20 12 90 275 1 Thermal 342 | 12 22 21 3 . . 4 4 18 . 13 44 4 . . 8 1 2 10 3 . 45 . 34 8 86 . Explosive 104 | . 9 5 10 . . 16 27 . . 11 5 3 . . . . 8 . 3 . . 7 . . . . Electromagnetic 158 | . 44 44 57 . . . 2 . . 9 2 . . . . . . . . . . . . . . . Robot Hit Streak 32 | 8 11 16 17 . 7 7 6 8 . 7 6 16 9 11 9 . 20 19 11 5 19 4 4 9 32 8 Robot Miss Streak 6 | . 5 5 6 . 6 2 2 2 . 3 6 2 2 2 4 . 1 4 1 2 1 2 1 4 3 . Penetration Max 2 | . . . . . 1 1 . . . . . 1 1 1 1 . 1 1 . . . . . 2 1 . Secondary Targets 20 | . 2 1 4 . . . . . . . . . 1 . . . 1 3 . . . . . 3 5 . Max Gunslinging Chain 2 | . 1 1 1 . . . . . . . . . 1 . . . 1 2 . . . . . 1 1 . Shots Hit Robots 1395 | 8 52 39 181 . 46 93 44 20 2 50 11 118 30 23 13 . 82 148 26 13 44 17 9 39 249 38 Core Hits 832 | 5 48 25 120 . 15 86 45 9 . 39 25 64 22 10 7 . 21 59 18 5 24 22 4 26 115 18 Critical Kills 13 | . . . 1 . . . . . . . 1 2 . . . . 1 1 . . . . . 2 5 . Critical Parts Destroyed 22 | . . . 3 . . . . . . . . 4 4 1 . . . 3 1 . . . . . 6 . Critical Strikes 70 | . . . 5 . 3 7 5 3 . . 1 7 7 1 . . 3 4 3 1 1 1 . 2 11 5 Burn 2 | . . . . . . . . 2 . . . . . . . . . . . . . . . . . . Destroy 39 | . . . 4 . . . . . . . 1 7 6 1 . . 2 4 1 . . . . 2 11 . Blast 11 | . . . . . 3 7 . . . . . . . . . . . . . 1 . . . . . . Smash 1 | . . . 1 . . . . . . . . . . . . . . . . . . . . . . . Sever 9 | . . . . . . . 5 1 . . . . 1 . . . . . . . . . . . . 2 Impale 8 | . . . . . . . . . . . . . . . . . 1 . 2 . 1 1 . . . 3 Melee Attacks 330 | . . 29 16 2 . 57 39 9 9 17 2 8 2 . . . 7 22 14 4 8 10 . 12 11 52 Impact 33 | . . 29 4 . . . . . . . . . . . . . . . . . . . . . . . Slashing 148 | . . . 12 2 . 57 39 9 7 . . 1 2 . . . . 7 . . . . . . 4 8 Piercing 149 | . . . . . . . . . 2 17 2 7 . . . . 7 15 14 4 8 10 . 12 7 44 Sneak Attacks 46 | . . . 1 . . 7 2 3 . . . . 2 . . . 7 3 9 3 . 4 . . . 5 Combat Hostiles . | . . . . . . . . . . . . . . . . . . . . . . . . . . . Follow-up Attacks 6 | . . . . . . . 1 . . . . . . . . . . . . . . . . . . 5 Damage Inflicted 52260 | 98 1022 1083 4069 . 1430 5154 2942 584 136 2353 1046 4123 1514 736 465 . 3054 4789 1793 681 375 1841 257 1516 9427 1772 Guns 25636 | 98 648 500 2633 . . 100 95 41 . 526 718 3367 1356 736 420 . 1809 4456 314 148 . 103 257 1516 5769 26 Cannons 4012 | . . . . . 1430 1559 20 . . 331 . . . . 31 . 65 . . 254 . 155 . . 167 . Explosions 14079 | . 374 583 1335 . . 2096 1795 . . 1262 328 756 . . . . 756 83 579 . . 831 . . 3301 . Melee 8035 | . . . 97 . . 1333 1032 393 136 234 . . 158 . . . 424 250 900 279 138 752 . . 163 1746 Ramming 111 | . . . 4 . . 66 . . . . . . . . 14 . . . . . . . . . 27 . Kinetic 26698 | . . . 1956 . 1430 1659 95 41 . 779 52 3367 1356 736 420 . 1809 4456 314 402 . 258 257 1516 5769 26 Thermal 5556 | 98 208 217 203 . . . 52 150 . 78 666 . . . 31 . 65 83 . . 237 . . . 3468 . Explosive 9803 | . 309 366 939 . . 2096 1743 . . 1100 328 756 . . . . 756 . 579 . . 831 . . . . Electromagnetic 2057 | . 505 500 870 . . . 20 . . 162 . . . . . . . . . . . . . . . . Impact 66 | . . . 66 . . . . . . . . . . . . . . . . . . . . . . . Slashing 3460 | . . . 31 . . 1333 1032 393 136 . . . 158 . . . . . . . . . . . 163 214 Piercing 4509 | . . . . . . . . . . 234 . . . . . . 424 250 900 279 138 752 . . . 1532 Highest Corruption 49 | . . 1 . . 1 3 3 18 18 6 1 . . . 7 . . 17 15 1 1 1 . . 25 49 Average Corruption 4 | . . 1 . . 1 2 3 6 18 2 1 . . . 4 . . 8 2 1 1 1 . . 9 28 Corruption Purged 17 | . . . . . . . . . . . 1 . . . . . . 2 14 . . . . . . . Corruption Blocked 20 | . . . . . . . . . . . . . . . . . . . . . . . . 4 16 . Effects 295 | . . . . . . 4 37 57 4 14 7 . . . 5 . . 57 20 11 2 17 . . 30 30 Message Errors 68 | . . . . . . 1 9 11 . 3 1 . . . 1 . . 17 5 3 1 4 . . 6 6 Matter Fused 72 | . . . . . . 1 12 11 . 3 1 . . . 4 . . 16 7 2 1 3 . . 4 7 Heat Flow Errors 30 | . . . . . . . 3 8 3 3 1 . . . . . . 1 3 . . 2 . . 3 3 Energy Discharges 37 | . . . . . . 2 6 7 1 4 1 . . . . . . 4 2 2 . . . . 3 5 Parts Rejected 6 | . . . . . . . 1 . . . . . . . . . . 1 . . . . . . 2 2 Parts Fused 3 | . . . . . . . . 1 . . . . . . . . . . . 1 . 1 . . . . Data Loss (minor) 34 | . . . . . . . 5 6 . . 1 . . . . . . 8 1 1 . 4 . . 5 3 Data Loss (major) 13 | . . . . . . . . 3 . . . . . . . . . 5 . . . 2 . . . 3 Misfires 16 | . . . . . . . 1 8 . 1 . . . . . . . 1 2 1 . 1 . . . 1 Alerts 9 | . . . . . . . . 2 . . 1 . . . . . . 3 . 1 . . . . 2 . Misdirections 2 | . . . . . . . . . . . . . . . . . . . . . . . . . 2 . Weapon Failures 5 | . . . . . . . . . . . 1 . . . . . . 1 . . . . . . 3 . Overload Shots . | . . . . . . . . . . . . . . . . . . . . . . . . . . . Overflow Damage 2118 | . . . 66 . 16 189 163 . 75 62 17 134 . . . . . 58 340 104 171 341 . . 186 196 Projectiles 92 | . . . . . 16 38 . . . 3 . . . . . . . . . 19 1 . . . 15 . Explosions 492 | . . . . . . 33 38 . . 59 17 134 . . . . . . 43 . . 36 . . 132 . Melee 1534 | . . . 66 . . 118 125 . 75 . . . . . . . . 58 297 85 170 305 . . 39 196 Knockbacks 21 | . . . . . 6 15 . . . . . . . . . . . . . . . . . . . . Impact 1 | . . . . . . 1 . . . . . . . . . . . . . . . . . . . . Kinetic 18 | . . . . . 6 12 . . . . . . . . . . . . . . . . . . . . Secondary 2 | . . . . . . 2 . . . . . . . . . . . . . . . . . . . . Self-Inflicted Damage 503 | . . 27 52 . . 41 149 . . 37 3 75 . . . . 119 . . . . . . . . . Shots 16 | . . 2 1 . . 3 4 . . 2 1 1 . . . . 2 . . . . . . . . . Rammed 11 | . . . 1 . . 7 . . . . . . . . 1 . . . . . . . . . 2 . Targets Rammed 11 | . . . 1 . . 7 . . . . . . . . 1 . . . . . . . . . 2 . Kicked . | . . . . . . . . . . . . . . . . . . . . . . . . . . . Crushed . | . . . . . . . . . . . . . . . . . . . . . . . . . . . Highest Temperature 533 | 108 210 4 455 . 165 355 238 275 259 364 188 268 80 . 115 . 380 235 252 283 . 130 370 333 533 192 Average Temperature 94 | 55 52 2 87 . 64 112 57 116 105 61 53 101 35 . 28 . 99 88 79 112 . 31 122 117 127 92 Received Heat Transfer 3887 | . 150 180 630 . 72 1106 316 36 . 213 9 90 . . 183 . . 263 20 . . 36 42 . 326 215 Effects 22 | . . . 1 . . 1 . 4 . . . . . . . . . . . . . . 2 . 14 . Shutdowns 3 | . . . . . . 1 . . . . . . . . . . . . . . . . . . 2 . Energy Bleed 5 | . . . . . . . . 2 . . . . . . . . . . . . . . . . 3 . Interference 12 | . . . 1 . . . . 2 . . . . . . . . . . . . . . 2 . 7 . Short Circuit 2 | . . . . . . . . . . . . . . . . . . . . . . . . . 2 . Siege Activations 41 | . . . . . . . . . . . 1 9 2 . . . 1 10 1 . . 2 1 3 10 1 Total Turns 807 | . . . . . . . . . . . 5 160 27 . . . 107 146 8 . . 11 7 66 239 31 Longest Duration 107 | . . . . . . . . . . . 5 84 14 . . . 107 45 8 . . 9 7 41 57 31 Martial Activations . | . . . . . . . . . . . . . . . . . . . . . . . . . . . Shielding Activations . | . . . . . . . . . . . . . . . . . . . . . . . . . . . Robots Disrupted . | . . . . . . . . . . . . . . . . . . . . . . . . . . . Combat Hostiles . | . . . . . . . . . . . . . . . . . . . . . . . . . . . Robots Corrupted 4 | . 1 1 1 . . . . . . 1 . . . . . . . . . . . . . . . . Combat Hostiles 3 | . . 1 1 . . . . . . 1 . . . . . . . . . . . . . . . . Parts Fried 13 | . 4 3 4 . . . . . . 2 . . . . . . . . . . . . . . . . Impact Corruptions 2 | . . . 2 . . . . . . . . . . . . . . . . . . . . . . . Robots Melted . | . . . . . . . . . . . . . . . . . . . . . . . . . . . Combat Hostiles . | . . . . . . . . . . . . . . . . . . . . . . . . . . . Parts Melted 12 | . 2 1 1 . . . . . . 1 . . . . . . . . . . . . . . 7 . Heat Transferred 8538 | 225 425 250 237 . . . 50 1120 . 100 900 . . . 50 . 100 50 . . 841 . . . 4190 . Parts Sabotaged . | . . . . . . . . . . . . . . . . . . . . . . . . . . . Parts Stolen . | . . . . . . . . . . . . . . . . . . . . . . . . . . . Parts Stripped . | . . . . . . . . . . . . . . . . . . . . . . . . . . . Power Chain Reactions 7 | . 2 2 2 . . . 1 . . . . . . . . . . . . . . . . . . . Alert | -11 -10 -10 -8 -7 -7 -6 -6 -6 -6 -5 -5 -5 -5 -5 -5 -4 -4 -4 -4 -4 -4 -3 -3 -3 -2 -2 ------- Run | Yrd Mat Sub Mat Fac DSF Fac Low Low Zio Pro Fac Ext Cet Arc Hub Fac Was Fac Upp Upp Zhi Pro Res Qua Res Tes Maximum Alert Level 3 | . 1 . 2 1 1 2 . . . . . 2 2 1 2 1 . 1 . . . . . 1 3 2 Low Security (%) 63 | 100 64 . 57 . 18 75 . . . . 100 70 . 35 16 18 100 66 . . . . 100 98 33 . Level 1 21 | . 35 . 26 100 81 15 . . . . . . 45 64 16 81 . 33 . . . . . 1 9 80 Level 2 14 | . . . 15 . . 8 . . . . . 29 54 . 66 . . . . . . . . . 50 19 Level 3 . | . . . . . . . . . . . . . . . . . . . . . . . . . 6 . Level 4 . | . . . . . . . . . . . . . . . . . . . . . . . . . . . Level 5 . | . . . . . . . . . . . . . . . . . . . . . . . . . . . High Security . | . . . . . . . . . . . . . . . . . . . . . . . . . . . Max Security . | . . . . . . . . . . . . . . . . . . . . . . . . . . . Sterilizations 1 | . . . . . 1 . . . . . . . . . . . . . . . . . . . . . Peak Influence 761 | 15 296 . 620 213 370 541 . . . . 125 585 515 369 554 261 74 296 . . . . 38 206 761 420 Initial 420 | . 3 . 31 213 145 193 . . . . 88 . 316 125 33 261 74 . . . . . . 12 79 420 Average 166 | 2 162 . 172 208 263 124 . . . . 31 203 404 238 387 221 9 108 . . . . 4 107 357 345 Influence Increases 11555 | 20 725 150 1319 5 245 1130 583 80 5 519 390 1157 359 290 881 52 88 1019 120 5 10 180 126 443 1421 233 Destroy 0b10 Robot/C 5860 | . 380 120 660 . 180 680 400 60 . 380 140 580 160 80 320 . . 420 100 . . 140 20 220 660 160 Destroy 0b10 Robot/NC 575 | 20 50 . 115 . 10 80 . . 5 5 15 50 10 20 5 . . 45 10 5 10 20 . 15 65 20 Destroy Leader 1080 | . 88 . 200 . 40 156 40 20 . 50 30 54 . . 62 . . 92 10 . . 20 10 32 156 20 Allied During Kill 1008 | . . . . . . . 8 . . 9 . 274 170 100 350 . . 97 . . . . . . . . Successful Hack 389 | . 33 . 59 4 . 27 . . . . 29 20 . . . 50 . 109 . . . . 21 10 27 . Select Force Hacks 140 | . 60 . 30 . . . . . . . . . . . 50 . . . . . . . . . . . Disable Machine 720 | . 60 . 60 . . 60 . . . . 60 45 15 60 30 . . 135 . . . . . 105 60 30 Destroy Structure 1243 | . 39 . 75 1 . 112 . . . . 116 104 4 30 64 2 88 106 . . . . 60 46 393 3 Partial Spotted 15 | . . . 15 . . . . . . . . . . . . . . . . . . . . . . . Lose Combat Pursuer 525 | . 15 30 105 . 15 15 135 . . 75 . 30 . . . . . 15 . . . . 15 15 60 . Influence Decreases 11256 | 15 559 259 911 267 83 1013 899 251 5 377 531 593 611 506 444 373 301 753 386 5 10 180 104 323 816 681 Entered New Map 2295 | . 2 83 31 257 63 177 181 34 . . 54 1 249 188 64 273 139 . 99 . . . . 10 63 327 Time Decay 7130 | 15 547 176 706 10 . 407 648 217 5 342 443 462 342 318 160 100 116 430 287 5 10 175 104 313 498 294 Lost Part 642 | . 10 . 24 . 20 129 30 . . 20 20 8 . . . . 46 20 . . . 5 . . 250 60 Lost Ally 514 | . . . . . . . 40 . . 15 . 122 20 . 220 . . 92 . . . . . . 5 . Purge Threat 675 | . . . 150 . . 300 . . . . 14 . . . . . . 211 . . . . . . . . Squads Dispatched 73 | . 5 . 6 . 2 6 . . . . 5 1 . . 11 . . 8 . . . . 8 3 16 2 Investigation 13 | . 4 . 1 . . . . . . . . . . . 2 . . 1 . . . . 5 . . . Extermination 21 | . . . . . . 4 . . . . 4 . . . . . . 6 . . . . . 3 3 1 Reinforcement 28 | . 1 . 3 . 2 2 . . . . 1 1 . . 5 . . . . . . . 3 . 9 1 Assault 7 | . . . 2 . . . . . . . . . . . 4 . . . . . . . . . 1 . Garrison 4 | . . . . . . . . . . . . . . . . . . 1 . . . . . . 3 . Intercept . | . . . . . . . . . . . . . . . . . . . . . . . . . . . Searches Triggered . | . . . . . . . . . . . . . . . . . . . . . . . . . . . Construction Impeded 3 | . . . 1 . . 1 . . . . . . . . 1 . . . . . . . . . . . Haulers Reinforced 4 | . . . . . . 1 . . . . . . . . . . . . . . . . 2 . 1 . Active Scanning Responses . | . . . . . . . . . . . . . . . . . . . . . . . . . . . Cargo Convoy Interrupts . | . . . . . . . . . . . . . . . . . . . . . . . . . . . Stealth | -11 -10 -10 -8 -7 -7 -6 -6 -6 -6 -5 -5 -5 -5 -5 -5 -4 -4 -4 -4 -4 -4 -3 -3 -3 -2 -2 --------- Run | Yrd Mat Sub Mat Fac DSF Fac Low Low Zio Pro Fac Ext Cet Arc Hub Fac Was Fac Upp Upp Zhi Pro Res Qua Res Tes Distress Signals 22 | . 1 . 3 . . 2 . . . . . 2 2 1 . . . 2 . . . . 5 . 3 1 Communications Jammed 80 | . . . . . . . . . . . . . . . . . . . . . . 2 . 1 77 . Distress Signals 71 | . . . . . . . . . . . . . . . . . . . . . . . . 1 70 . Times Spotted 435 | . 23 14 49 . 7 45 26 3 . 22 13 31 9 6 32 . 6 28 4 . . 9 9 17 69 13 Peak Tracking Total 14 | . 5 6 5 . 3 5 7 1 . 5 2 9 5 1 14 . 3 3 5 . . 5 7 3 13 4 Tactical Retreats 29 | . 1 1 5 . 1 1 9 . . 3 . 2 . . . . . 1 . . . . 1 1 3 . Traps | -11 -10 -10 -8 -7 -7 -6 -6 -6 -6 -5 -5 -5 -5 -5 -5 -4 -4 -4 -4 -4 -4 -3 -3 -3 -2 -2 ------- Run | Yrd Mat Sub Mat Fac DSF Fac Low Low Zio Pro Fac Ext Cet Arc Hub Fac Was Fac Upp Upp Zhi Pro Res Qua Res Tes Traps Triggered 17 | . 2 2 1 . 2 1 . . . . 1 . . . 4 1 . 1 . . . . . 1 . 1 Indirectly . | . . . . . . . . . . . . . . . . . . . . . . . . . . . Trap Hack Attempts . | . . . . . . . . . . . . . . . . . . . . . . . . . . . Triggered . | . . . . . . . . . . . . . . . . . . . . . . . . . . . Disarmed . | . . . . . . . . . . . . . . . . . . . . . . . . . . . Reprogrammed . | . . . . . . . . . . . . . . . . . . . . . . . . . . . Reused 1 | . . . . . . . . . . 1 . . . . . . . . . . . . . . . . Traps Extracted . | . . . . . . . . . . . . . . . . . . . . . . . . . . . Installed 8 | . . . 1 . . . . . . 7 . . . . . . . . . . . . . . . . Triggered 1 | . . . . . . . . . . 1 . . . . . . . . . . . . . . . . Most Traps Carried 5 | . . 1 1 . . . . . . 5 . . . . . . . . . 1 1 1 1 . . . Machines | -11 -10 -10 -8 -7 -7 -6 -6 -6 -6 -5 -5 -5 -5 -5 -5 -4 -4 -4 -4 -4 -4 -3 -3 -3 -2 -2 ---------- Run | Yrd Mat Sub Mat Fac DSF Fac Low Low Zio Pro Fac Ext Cet Arc Hub Fac Was Fac Upp Upp Zhi Pro Res Qua Res Tes Machines Disabled 58 | . 4 1 4 . . 4 . . . 3 4 6 1 4 2 . . 9 1 . 2 . . 7 4 2 Max in Single Turn 3 | . 2 1 2 . . 1 . . . 1 1 1 1 . 1 . . 3 1 . 1 . . 1 1 1 Garrison Access 5 | . . . . . . . . . . . . . . . 2 . . . . . . . 1 1 1 . Network Hub 1 | . . . . . . . . . . . . . . . 1 . . . . . . . . . . . Machines Repaired . | . . . . . . . . . . . . . . . . . . . . . . . . . . . Machines Dismantled 4 | . . . . . . . . . . . . 2 1 . . . . . . . . . . . . 1 Machines Sabotaged 1 | . . . . . . . . . . . . . . . 1 . . . . . . . . . . . Overloaded Fab Kills . | . . . . . . . . . . . . . . . . . . . . . . . . . . . Hacking | -11 -10 -10 -8 -7 -7 -6 -6 -6 -6 -5 -5 -5 -5 -5 -5 -4 -4 -4 -4 -4 -4 -3 -3 -3 -2 -2 --------- Run | Yrd Mat Sub Mat Fac DSF Fac Low Low Zio Pro Fac Ext Cet Arc Hub Fac Was Fac Upp Upp Zhi Pro Res Qua Res Tes Machines Accessed 97 | . 10 2 16 1 . 11 . 1 . . 8 10 1 . 3 3 . 9 1 . 4 . 6 7 4 . Terminals 67 | . 7 . 10 1 . 11 . . . . 7 10 1 . 3 2 . 6 . . . . 1 6 2 . Fabricators 3 | . . . . . . . . . . . . . . . . . . 2 . . . . 1 . . . Repair Stations 5 | . 1 . 2 . . . . . . . 1 . . . . 1 . . . . . . . . . . Recycling Units 5 | . 2 . 2 . . . . . . . . . . . . . . . . . . . 1 . . . Scanalyzers 5 | . . . 2 . . . . . . . . . . . . . . 1 . . . . 1 . 1 . Garrison Access 4 | . . . . . . . . . . . . . . . . . . . . . . . 2 1 1 . Total Hacks 277 | . 28 5 53 1 . 41 . 1 . . 21 11 1 . 8 12 . 49 1 . 16 . 8 15 6 . Successful 158 | . 18 5 30 1 . 17 . 1 . . 13 5 . . 2 6 . 32 1 . 16 . 4 3 4 . Failed 118 | . 9 . 23 . . 24 . . . . 8 6 1 . 6 6 . 17 . . . . 4 12 2 . Catastrophic 18 | . . . 2 . . 6 . . . . 1 1 1 . . . . 2 . . . . 2 2 1 . Database Lockouts 1 | . 1 . . . . . . . . . . . . . . . . . . . . . . . . . Manual 160 | . 22 . 36 . . 37 . . . . 16 4 1 . 8 2 . 24 . . . . 2 7 1 . Terminals 206 | . 22 . 39 1 . 41 . . . . 19 11 1 . 8 5 . 43 . . . . 2 10 4 . Fabricators 3 | . . . . . . . . . . . . . . . . . . 2 . . . . 1 . . . Repair Stations 15 | . 1 . 5 . . . . . . . 2 . . . . 7 . . . . . . . . . . Recycling Units 12 | . 5 . 5 . . . . . . . . . . . . . . . . . . . 2 . . . Scanalyzers 10 | . . . 4 . . . . . . . . . . . . . . 4 . . . . 1 . 1 . Garrison Access 8 | . . . . . . . . . . . . . . . . . . . . . . . 2 5 1 . Terminal Hacks 72 | . 5 5 7 1 . 8 . 1 . . 4 5 . . . 1 . 16 1 . 16 . . 1 1 . Record 8 | . . 4 . . . . . . . . . . . . . . . . . . 4 . . . . . Part Schematic 4 | . . . . . . . . . . . . . . . . . . . . . 4 . . . . . Robot Analysis 10 | . 2 . 2 . . 1 . . . . . . . . . . . 1 . . 4 . . . . . Prototype ID Bank 8 | . 2 . . . . . . . . . 1 . . . . . . 1 . . 4 . . . . . Open Door 8 | . . . . . . . . 1 . . 1 5 . . . . . . 1 . . . . . . . Open DSF 1 | . . . . 1 . . . . . . . . . . . . . . . . . . . . . . Branch Access Points 4 | . . . . . . 1 . . . . . . . . . 1 . 1 . . . . . . 1 . Emergency Access Points 1 | . . . . . . . . . . . . . . . . . . 1 . . . . . . . . Terminal Index 3 | . . . 1 . . 1 . . . . . . . . . . . 1 . . . . . . . . Alert Level 6 | . . . 1 . . 2 . . . . 1 . . . . . . 2 . . . . . . . . Unreport Threat 6 | . . . 1 . . 2 . . . . 1 . . . . . . 2 . . . . . . . . Locate Traps 6 | . 1 . 2 . . . . . . . . . . . . . . 2 . . . . . 1 . . Extermination Status 1 | . . . . . . . . . . . . . . . . . . 1 . . . . . . . . Recall Investigation 1 | . . . . . . . . . . . . . . . . . . 1 . . . . . . . . Recall Extermination 1 | . . . . . . . . . . . . . . . . . . 1 . . . . . . . . Registered Components 2 | . . . . . . 1 . . . . . . . . . . . 1 . . . . . . . . Zone Layout 1 | . . . . . . . . . . . . . . . . . . 1 . . . . . . . . Proto ID Catalog 1 | . . 1 . . . . . . . . . . . . . . . . . . . . . . . . Fabricator Hacks 2 | . . . . . . . . . . . . . . . . . . 2 . . . . . . . . Network Status 2 | . . . . . . . . . . . . . . . . . . 2 . . . . . . . . Repair Station Hacks 10 | . 1 . 4 . . . . . . . 2 . . . . 3 . . . . . . . . . . Scan Component 5 | . . . 2 . . . . . . . 1 . . . . 2 . . . . . . . . . . Repair 4 | . . . 2 . . . . . . . 1 . . . . 1 . . . . . . . . . . Refit 1 | . 1 . . . . . . . . . . . . . . . . . . . . . . . . . Recycling Unit Hacks 4 | . 1 . 1 . . . . . . . . . . . . . . . . . . . 2 . . . Retrieve Components 4 | . 1 . 1 . . . . . . . . . . . . . . . . . . . 2 . . . Scanalyzer 9 | . . . 4 . . . . . . . . . . . . . . 4 . . . . . . 1 . Insert Component 1 | . . . . . . . . . . . . . . . . . . . . . . . . . 1 . Retrieve Study 8 | . . . 4 . . . . . . . . . . . . . . 4 . . . . . . . . Garrison Access Hacks 3 | . . . . . . . . . . . . . . . . . . . . . . . 1 1 1 . Seal Access 3 | . . . . . . . . . . . . . . . . . . . . . . . 1 1 1 . Unauthorized Hacks 58 | . 11 . 14 . . 9 . . . . 7 . . . 2 2 . 10 . . . . 1 1 1 . Terminals 55 | . 9 . 13 . . 9 . . . . 7 . . . 2 2 . 10 . . . . 1 1 1 . Assimilate 6 | . . . 5 . . . . . . . . . . . . . . 1 . . . . . . . . Botnet 17 | . 3 . 2 . . 3 . . . . 2 . . . . 1 . 3 . . . . 1 1 1 . Operators 4 | . 1 . 1 . . 1 . . . . . . . . . . . 1 . . . . . . . . Skim 26 | . 5 . 5 . . 5 . . . . 5 . . . . 1 . 5 . . . . . . . . Sabotage 2 | . . . . . . . . . . . . . . . 2 . . . . . . . . . . . Fabricators . | . . . . . . . . . . . . . . . . . . . . . . . . . . . Repair Stations . | . . . . . . . . . . . . . . . . . . . . . . . . . . . Recycling Units 3 | . 2 . 1 . . . . . . . . . . . . . . . . . . . . . . . Tunnel 3 | . 2 . 1 . . . . . . . . . . . . . . . . . . . . . . . Scanalyzers . | . . . . . . . . . . . . . . . . . . . . . . . . . . . Garrison Access . | . . . . . . . . . . . . . . . . . . . . . . . . . . . Data Cores Recovered . | . . . . . . . . . . . . . . . . . . . . . . . . . . . Used . | . . . . . . . . . . . . . . . . . . . . . . . . . . . Hacking Detections 69 | . 6 . 13 . . 11 . . . . 7 7 1 . 1 3 . 6 . . . . 5 6 3 . Full Trace Events . | . . . . . . . . . . . . . . . . . . . . . . . . . . . Feedback Events . | . . . . . . . . . . . . . . . . . . . . . . . . . . . Feedback Blocked . | . . . . . . . . . . . . . . . . . . . . . . . . . . . Robot Schematics Acquired 3 | . . . . . . . . . . . . . . . . . . . . . . . . . . 3 Robots Built . | . . . . . . . . . . . . . . . . . . . . . . . . . . . Authchips . | . . . . . . . . . . . . . . . . . . . . . . . . . . . Time . | . . . . . . . . . . . . . . . . . . . . . . . . . . . Total Robot Build Rating . | . . . . . . . . . . . . . . . . . . . . . . . . . . . Part Schematics Acquired 6 | . . . . . . . . . . . . . . . . . . . . . 4 . . . . 2 Parts Built . | . . . . . . . . . . . . . . . . . . . . . . . . . . . Authchips . | . . . . . . . . . . . . . . . . . . . . . . . . . . . Time . | . . . . . . . . . . . . . . . . . . . . . . . . . . . Total Part Build Rating . | . . . . . . . . . . . . . . . . . . . . . . . . . . . Part Studies Acquired 8 | . . . 4 . . . . . . . . . . . . . . 4 . . . . . . . . Parts Repaired 4 | . . . 2 . . . . . . . 1 . . . . 1 . . . . . . . . . . Time 151 | . . . 39 . . . . . . . 56 . . . . 56 . . . . . . . . . . Parts Recycled . | . . . . . . . . . . . . . . . . . . . . . . . . . . . Recycled Matter . | . . . . . . . . . . . . . . . . . . . . . . . . . . . Retrieved Matter . | . . . . . . . . . . . . . . . . . . . . . . . . . . . Retrieved Components 19 | . 10 . 9 . . . . . . . . . . . . . . . . . . . . . . . Parts Scanalyzed . | . . . . . . . . . . . . . . . . . . . . . . . . . . . Part Schematics Acquired . | . . . . . . . . . . . . . . . . . . . . . . . . . . . Parts Damaged . | . . . . . . . . . . . . . . . . . . . . . . . . . . . Bothacking | -11 -10 -10 -8 -7 -7 -6 -6 -6 -6 -5 -5 -5 -5 -5 -5 -4 -4 -4 -4 -4 -4 -3 -3 -3 -2 -2 ------------ Run | Yrd Mat Sub Mat Fac DSF Fac Low Low Zio Pro Fac Ext Cet Arc Hub Fac Was Fac Upp Upp Zhi Pro Res Qua Res Tes Used RIF Installer . | . . . . . . . . . . . . . . . . . . . . . . . . . . . Robots Hacked . | . . . . . . . . . . . . . . . . . . . . . . . . . . . Non-combat . | . . . . . . . . . . . . . . . . . . . . . . . . . . . Combat . | . . . . . . . . . . . . . . . . . . . . . . . . . . . Robot Hacks Applied . | . . . . . . . . . . . . . . . . . . . . . . . . . . . Relay Couplers Released . | . . . . . . . . . . . . . . . . . . . . . . . . . . . Fabnet Peak Effective % . | . . . . . . . . . . . . . . . . . . . . . . . . . . . Robots Rewired 16 | . . . . . . . 2 . . . . 14 . . . . . . . . . . . . . . Allies Hacked 4 | . . . . . . . . . . . . . . . . . . 4 . . . . . . . . Hacks Repelled . | . . . . . . . . . . . . . . . . . . . . . . . . . . . Allies | -11 -10 -10 -8 -7 -7 -6 -6 -6 -6 -5 -5 -5 -5 -5 -5 -4 -4 -4 -4 -4 -4 -3 -3 -3 -2 -2 -------- Run | Yrd Mat Sub Mat Fac DSF Fac Low Low Zio Pro Fac Ext Cet Arc Hub Fac Was Fac Upp Upp Zhi Pro Res Qua Res Tes Total Allies 61 | . . . 1 . . . 2 . 7 . . 26 5 . . . 19 1 . . . . . . . . Largest Group 19 | . . . 1 . . . 2 . 7 7 . 17 19 19 17 . 19 17 . . . . . . . . Highest-Rated Group 1036 | . . . 10 . . . 49 . 181 181 . 684 1036 1036 801 . 702 602 . . . . . . . . Highest-Rated Ally 159 | . . . 10 . . . 29 . 51 51 . 159 159 139 96 . 50 46 . . . . . . . . Initial Warlord ECA Mod 9 | . . . . . . 9 9 9 9 8 8 7 7 7 7 6 6 6 6 6 6 5 5 5 4 4 Warlord Squad Rendezvous 1 | . . . . . . . . . . . 1 . . . . . . . . . . . . . . . Ranger 1 | . . . . . . . . . . . 1 . . . . . . . . . . . . . . . Total Orders 12 | . . . 1 . . . . . . . . 2 6 2 . . . . . . . . . . 1 . STAY 9 | . . . 1 . . . . . . . . 1 6 1 . . . . . . . . . . . . FOLLOW 2 | . . . . . . . . . . . . 1 . 1 . . . . . . . . . . . . EXPLORE 1 | . . . . . . . . . . . . . . . . . . . . . . . . . 1 . Ally Attacks 382 | . . . . . . . 7 . . 17 . 98 33 41 107 . . 79 . . . . . . . . Total Damage 8731 | . . . . . . . 96 . . 596 . 1779 803 1393 2975 . . 1089 . . . . . . . . Kills 50 | . . . . . . . 2 . . 2 . 13 6 5 17 . . 5 . . . . . . . . Allies Corrupted 6 | . . . . . . . . . . . . 1 . . 2 . . 3 . . . . . . . . Allies Melted . | . . . . . . . . . . . . . . . . . . . . . . . . . . . Intel | -11 -10 -10 -8 -7 -7 -6 -6 -6 -6 -5 -5 -5 -5 -5 -5 -4 -4 -4 -4 -4 -4 -3 -3 -3 -2 -2 ------- Run | Yrd Mat Sub Mat Fac DSF Fac Low Low Zio Pro Fac Ext Cet Arc Hub Fac Was Fac Upp Upp Zhi Pro Res Qua Res Tes Active Infowar (turns) 30205 | 22 1354 2420 3766 . . 851 1494 1260 1725 2640 1625 878 . . . 215 831 2003 895 1507 438 2091 1606 981 1142 461 Optics 1598 | . . . . . . . . . . . 887 711 . . . . . . . . . . . . . . Sensors 20389 | . . . . . . 377 1494 1260 1725 2630 1444 167 . . . 215 647 2003 895 1507 429 1997 1586 917 635 461 Terrain 1612 | . . . . . . 110 . . . . 32 145 . . . . . 41 . . . . 1072 210 2 . Seismic 8181 | 22 1354 2420 3766 . . 364 . . . 10 . . . . . . 245 . . . . . . . . . Decoding 1931 | . . . . . . . . . . . . . . . . . . . . . . . 1555 376 . . Jamming 5665 | . . . . . . . . . . . . . . . . . . . . . 9 2020 1596 975 1065 . Robot Analysis Total 10 | . 2 . 2 . . 1 . . . . . . . . . . . 1 . . 4 . . . . . Derelict Logs Recovered 10 | . . 1 . . . . 2 1 1 2 . . . . . . . . 1 2 . . . . . . Drone Launches 1 | . . . . . . . . . . . . . . . . . . . . . . . . . 1 . Drone Recoveries . | . . . . . . . . . . . . . . . . . . . . . . . . . . . Decoded 0b10 Intel 10 | . . . . . . . . . . . . . . . . . . . . . . . 3 7 . . Traps 4 | . . . . . . . . . . . . . . . . . . . . . . . . 4 . . Emergency Access 3 | . . . . . . . . . . . . . . . . . . . . . . . . 3 . . Garrisons 2 | . . . . . . . . . . . . . . . . . . . . . . . 2 . . . Exits 1 | . . . . . . . . . . . . . . . . . . . . . . . 1 . . . Exploration | -11 -10 -10 -8 -7 -7 -6 -6 -6 -6 -5 -5 -5 -5 -5 -5 -4 -4 -4 -4 -4 -4 -3 -3 -3 -2 -2 ------------- Run | Yrd Mat Sub Mat Fac DSF Fac Low Low Zio Pro Fac Ext Cet Arc Hub Fac Was Fac Upp Upp Zhi Pro Res Qua Res Tes Turns Passed 43237 | 99 1754 3039 5710 37 373 2132 2363 1908 1729 4443 1667 2497 765 706 329 215 852 2204 1465 1507 444 2124 1606 981 1637 651 Spaces Moved 19212 | 43 906 1622 1448 15 136 913 1067 1079 894 2056 750 1085 297 98 175 95 392 950 762 932 188 1191 946 508 509 155 Core 3 | 3 . . . . . . . . . . . . . . . . . . . . . . . . . . Treads 15268 | 40 906 1622 993 15 136 913 1067 887 . . 461 1085 297 98 175 95 392 950 762 932 188 1191 946 508 509 100 Legs 3319 | . . . . . . . . 192 894 2056 177 . . . . . . . . . . . . . . . Wheels 622 | . . . 455 . . . . . . . 112 . . . . . . . . . . . . . . 55 Hover . | . . . . . . . . . . . . . . . . . . . . . . . . . . . Flight . | . . . . . . . . . . . . . . . . . . . . . . . . . . . Fastest Speed 50 | 50 160 160 155 170 170 167 162 121 121 121 145 160 160 160 160 160 160 155 156 157 157 156 145 145 145 130 Average Speed 167 | 152 160 163 186 170 189 169 166 157 185 191 167 160 160 160 160 160 160 158 158 157 157 156 147 147 174 196 Slowest Speed 265 | 160 160 240 256 170 250 250 247 243 191 192 265 160 160 160 240 160 160 160 241 157 157 157 232 247 247 225 Overloaded Moves . | . . . . . . . . . . . . . . . . . . . . . . . . . . . Propulsion Burnouts . | . . . . . . . . . . . . . . . . . . . . . . . . . . . Robots Hopped . | . . . . . . . . . . . . . . . . . . . . . . . . . . . Potential Cave-ins 36 | . . 2 . . . 7 . . . . 10 . . . 2 . . 2 . . . 2 2 . 9 . Cave-ins Triggered 1 | . . . . . . . . . . . . . . . . . . . . . . . . . . 1 Teleports 1 | . . . . . . . . . . . . . . . . . . . . . . . . . 1 . Exploration Rate (%) 60 | 3 99 94 88 2 94 35 98 98 79 97 20 85 64 81 20 4 95 28 83 93 60 97 39 43 17 10 Regions Visited 26 Branch Regions 15 Pre-discovered Areas 13 | . 2 . 3 . . 1 1 . 2 . . . . . . . . . 1 . 3 . . . . . Known Exits Taken 21 | . . 1 1 1 . 1 1 1 1 1 1 1 1 1 1 . . 1 1 1 1 1 1 1 1 . Unknown Exits Taken 2 | 1 1 . . . . . . . . . . . . . . . . . . . . . . . . . Scrap Searched 25 | . . 2 . . . . 3 3 5 2 . . . . . . . . 2 4 . 4 . . . . Spaces Dug 245 | . 2 19 17 1 . 25 8 . . 41 21 3 . . 6 . . 20 4 1 . 19 23 8 26 1 Terrain Destroyed 1271 | . 49 44 83 1 . 121 189 . . 162 74 59 . 9 7 1 82 61 45 11 . 78 34 21 139 1 Melee 89 | . . 7 13 1 . 22 3 . . 7 . 3 . . . . . 16 3 1 . . . 6 6 1 Projectile 387 | . 2 12 . . . 47 4 . . 39 33 21 . 9 7 1 6 36 13 10 . 15 34 15 83 . AOE 795 | . 47 25 70 . . 52 182 . . 116 41 35 . . . . 76 9 29 . . 63 . . 50 . Terrain Rammed . | . . . . . . . . . . . . . . . . . . . . . . . . . . . Walls Destroyed . | . . . . . . . . . . . . . . . . . . . . . . . . . . . Machines Disabled . | . . . . . . . . . . . . . . . . . . . . . . . . . . . Actions | -11 -10 -10 -8 -7 -7 -6 -6 -6 -6 -5 -5 -5 -5 -5 -5 -4 -4 -4 -4 -4 -4 -3 -3 -3 -2 -2 --------- Run | Yrd Mat Sub Mat Fac DSF Fac Low Low Zio Pro Fac Ext Cet Arc Hub Fac Was Fac Upp Upp Zhi Pro Res Qua Res Tes Total 28003 | 61 1131 1835 4228 24 206 1285 1537 1241 950 2445 1090 1700 548 623 202 157 544 1447 963 959 275 1410 1118 655 972 397 Wait 6039 | 2 137 81 2524 . 12 178 293 115 12 183 196 375 199 510 12 56 81 303 149 2 4 150 50 71 186 158 Move 19189 | 42 905 1621 1447 14 135 913 1066 1078 893 2055 749 1084 296 97 174 95 391 949 761 931 187 1190 945 507 509 155 Hop . | . . . . . . . . . . . . . . . . . . . . . . . . . . . Pick Up 270 | 4 17 10 29 1 13 12 16 3 9 22 16 14 9 2 . 1 7 15 4 4 5 6 19 4 20 8 Fast Attach 211 | 7 2 2 26 1 . 4 12 4 4 18 16 9 1 1 3 1 10 15 4 4 8 5 17 6 23 8 Attach 144 | . 2 7 13 3 5 11 10 4 4 7 13 3 3 . . 2 6 6 4 . 4 3 3 3 21 7 Detach 41 | . 2 . 4 . . 2 7 . 4 3 7 2 . . . . . 1 1 . . . 1 1 3 3 Swap 340 | . 12 27 25 1 7 31 18 8 5 26 11 22 7 . 1 1 12 38 10 2 3 17 9 14 32 1 Drop 349 | . 11 9 36 2 13 10 11 5 10 39 27 21 13 2 . . 8 28 4 8 11 12 37 11 18 3 Fire 925 | 6 43 49 106 . 21 61 38 15 . 68 53 51 10 11 11 1 22 70 12 4 45 17 37 26 148 . Melee 321 | . . 29 16 2 . 57 38 9 9 17 2 8 2 . . . 7 22 14 4 8 10 . 12 11 44 Ram . | . . . . . . . . . . . . . . . . . . . . . . . . . . . Kick . | . . . . . . . . . . . . . . . . . . . . . . . . . . . Crush 9 | . . . 1 . . 6 . . . . . . . . 1 . . . . . . . . . 1 . Escape Stasis . | . . . . . . . . . . . . . . . . . . . . . . . . . . . Rewire 122 | . . . . . . . 28 . . . . 94 . . . . . . . . . . . . . . Trap 8 | . . . 1 . . . . . . 7 . . . . . . . . . . . . . . . . Miscellaneous 35 | . . . . . . . . . . . . 17 8 . . . . . . . . . . . . 10 Route ------- -11/Scrapyard -10/Materials (discovered 6 exits: *Mat x3 / [*Min x2] / *Sub) -10/Subcaves (discovered 3 exits: *Mat x2 / [*Rec]) -8/Materials (discovered 3 exits: *Fac x3) -7/Factory (discovered 8 exits: Fac x4 / *Sto / Low x2 / DSF) -7/DSF -6/Factory (discovered 4 exits: *Fac x2 / *Low x2) -6/Lower Caves -6/Lower Caves (discovered 2 exits: *Fac / *Zio) -6/Zion -5/Proximity Caves -5/Factory (discovered 2 exits: *Upp / *Ext) -5/Extension (discovered 3 exits: *Fac x2 / *Cet) -5/Cetus (discovered 2 exits: *Fac / *Arc) -5/Archives (discovered 3 exits: *Fac / *Hub x2) -5/Hub_04(d) (discovered 3 exits: *Fac x3) -4/Factory (discovered 3 exits: Res / Upp x2) -4/Waste -4/Factory (discovered 4 exits: *Res x2 / *Upp x2) -4/Upper Caves -4/Upper Caves (discovered 2 exits: *Res / *Zhi) -4/Zhirov -3/Proximity Caves -3/Research (discovered 2 exits: Arm / *Qua) -3/Quarantine -2/Research (discovered 2 exits: *Tes x2) -2/Testing History --------- Turn | Location | Event 9 | -11/Scrapyard | Discovered new exit (range 13) 100 | -11/Scrapyard | Entered Materials 100 | -10/Materials | Discovered new exit (range 13) 187 | -10/Materials | Discovered new exit (range 7) 310 | -10/Materials | Build established: Mutant 485 | -10/Materials | Discovered new exit (range 15) 775 | -10/Materials | Discovered new exit (range 7) 1257 | -10/Materials | Learned 2 Storage zone layouts 1266 | -10/Materials | Discovered new exit (range 10) 1326 | -10/Materials | Learned 4 Subcaves zone layouts 1386 | -10/Materials | Identified exit to Materials 1386 | -10/Materials | Learned location of 1 exit from Materials 1436 | -10/Materials | Learned 4 Subcaves zone layouts 1474 | -10/Materials | Learned Recycling recycling unit intel 1485 | -10/Materials | Central database locked down 1502 | -10/Materials | Loaded intel: 1 repair station location 1542 | -10/Materials | Learned location of 2 exits from Mines 1591 | -10/Materials | Learned Storage stockpile data 1854 | -10/Materials | Entered Subcaves 1855 | -10/Subcaves | Identified exit to Materials 2414 | -10/Subcaves | Visited Clippyterm 2419 | -10/Subcaves | Learned Factory emergency access door positions 2419 | -10/Subcaves | Learned 40 Factory zone layouts 2727 | -10/Subcaves | Discovered exit to Materials (range 6) 2894 | -10/Subcaves | Visited 4L-MR0's lab 2913 | -10/Subcaves | Found Gun Armor 3575 | -10/Subcaves | Shifting Twisted Machinery released Sub. Power Source 3576 | -10/Subcaves | Shifting Twisted Machinery released Flamer 4286 | -10/Subcaves | Discovered new exit (range 13) 4417 | -10/Subcaves | Shifting Twisted Machinery released Spk. Treads 4423 | -10/Subcaves | Learned 8 Materials zone layouts 4424 | -10/Subcaves | Shifting Twisted Machinery released Flamer 4893 | -10/Subcaves | Entered Materials 4893 | -8/Materials | Evolved 4 slots: Propulsion x1, Utility x1, Weapon x2 4894 | -8/Materials | Identified exit to Factory 6092 | -8/Materials | Build established: Scavenger-Tank 7973 | -8/Materials | Repaired Grenade Launcher+ 8049 | -8/Materials | Discovered exit to Factory (range 7) 8384 | -8/Materials | Learned 2 Storage zone layouts 8411 | -8/Materials | Learned location of 1 exit from Lower Caves 8429 | -8/Materials | Learned location of Zion (-6) 8437 | -8/Materials | Learned Storage emergency access door positions 8456 | -8/Materials | Learned Factory emergency access door positions 8499 | -8/Materials | Build established: Scavenger-Gunner 8871 | -8/Materials | Repaired Grenade Launcher+ 9596 | -8/Materials | Discovered exit to Factory (range 16) 9971 | -8/Materials | Build established: Tank 10093 | -8/Materials | First assault squad dispatched 10176 | -8/Materials | Destroyed 7 combat bots 10603 | -8/Materials | Entered Factory 10603 | -7/Factory | Evolved 2 slots: Propulsion x1, Utility x1 10604 | -7/Factory | Identified exit to Factory 10604 | -7/Factory | Identified exit to Storage 10604 | -7/Factory | Identified exit to Lower Caves 10639 | -7/Factory | Identified exit to DSF 10640 | -7/Factory | Entered DSF 10687 | -7/DSF | Additional patrols routed to DSF 10929 | -7/DSF | Sterilization system engaged 10949 | -7/DSF | Ambient heat levels rising (+10) 10964 | -7/DSF | Ambient heat levels rising (+10) 10970 | -7/DSF | Build established: Gunner 10979 | -7/DSF | Ambient heat levels rising (+10) 10981 | -7/DSF | Discovered exit to Factory (range 14) 10994 | -7/DSF | Ambient heat levels rising (+10) 11009 | -7/DSF | Ambient heat levels rising (+10) 11013 | -7/DSF | Entered Factory 11013 | -6/Factory | Evolved 2 slots: Propulsion x2 11533 | -6/Factory | Discovered new exit (range 13) 11729 | -6/Factory | Identified exit to Lower Caves 11761 | -6/Factory | Discovered new exit (range 5) 12625 | -6/Factory | Loaded intel: 26 terminal locations 12694 | -6/Factory | Learned 2 Proximity Caves zone layouts 12753 | -6/Factory | Learned location of 2 exits from Archives 12801 | -6/Factory | Learned 4 Upper Caves zone layouts 12841 | -6/Factory | Learned Hub_04(d) emergency access door positions 12953 | -6/Factory | Learned 4 Lower Caves zone layouts 13006 | -6/Factory | Destroyed 12 combat bots 13010 | -6/Factory | Lost 7 parts (1p2n4w) 13024 | -6/Factory | Learned 2 Hub_04(d) zone layouts 13113 | -6/Factory | Spotted B-75 Beast 13145 | -6/Factory | Entered Lower Caves 13146 | -6/Lower Caves | Identified exit to Lower Caves 13171 | -6/Lower Caves | Lost 5 parts (4n1u) 13214 | -6/Lower Caves | Build established: Mutant 13219 | -6/Lower Caves | Met a Warlord Commander 13220 | -6/Lower Caves | Learned location of Warlord (-5) 13221 | -6/Lower Caves | Warlord Commander delivered Encrypted Comm Array 13226 | -6/Lower Caves | Found Encrypted Comm Array 13292 | -6/Lower Caves | Learned Factory stockpile data 13481 | -6/Lower Caves | Learned Factory stockpile data 13535 | -6/Lower Caves | Attracted the attention of an 0b10 outpost 14226 | -6/Lower Caves | Lost 3 parts (1p2w) 14645 | -6/Lower Caves | Attracted the attention of an 0b10 checkpoint 14911 | -6/Lower Caves | Build established: Scavenger-Skirmisher 15508 | -6/Lower Caves | Entered another Lower Caves area 15561 | -6/Lower Caves | Discovered new exit (range 10) 16260 | -6/Lower Caves | Lost 3 parts (2n1w) 16484 | -6/Lower Caves | Learned 4 Factory zone layouts 16589 | -6/Lower Caves | Attracted the attention of an 0b10 checkpoint 16919 | -6/Lower Caves | Build established: Scavenger-Gunner 17176 | -6/Lower Caves | System corruption reached 10% 17186 | -6/Lower Caves | Lost 4 parts (2n2w) 17394 | -6/Lower Caves | Discovered new exit (range 7) 17412 | -6/Lower Caves | Identified exit to Zion 17416 | -6/Lower Caves | Entered Zion 17491 | -6/Zion | System corruption cleaned by Quarantine Array 17593 | -6/Zion | Found Prototype Energy Gun 17676 | -6/Zion | Discovered new exit (range 15) 17813 | -6/Zion | Build established: Scavenger-Skirmisher 18007 | -6/Zion | Found CR-A16's Pointy Stick 18063 | -6/Zion | Received a hallucinogenic algorithm 18480 | -6/Zion | Acquired unknown access codes intercepted by a Zionite 18682 | -6/Zion | Found GAL Module 18920 | -6/Zion | Gained Derelict followers 19132 | -6/Zion | Identified exit to Proximity Caves 19145 | -6/Zion | Entered Proximity Caves 19145 | -5/Proximity Caves | Accompanied by 7 allies 19158 | -5/Proximity Caves | Spotted B-75 Beast 19203 | -5/Proximity Caves | Lost 6 allies 19215 | -5/Proximity Caves | Revealed the true nature of CR-A16's Pointy Stick 19223 | -5/Proximity Caves | Destroyed B-75 Beast 19701 | -5/Proximity Caves | Received a Behemoth hack from an annoying Tinkerer 19921 | -5/Proximity Caves | Learned Factory terminal intel 21316 | -5/Proximity Caves | Build established: Scavenger-Tank 22394 | -5/Proximity Caves | Attracted the attention of an 0b10 base 23055 | -5/Proximity Caves | Build established: Scavenger-Skirmisher 23102 | -5/Proximity Caves | Identified exit to Factory 23588 | -5/Proximity Caves | Entered Factory 23588 | -5/Factory | Evolved 2 slots: Power x1, Utility x1 23589 | -5/Factory | Identified exit to Extension 23592 | -5/Factory | Loaded intel: 28 terminal locations 23767 | -5/Factory | Identified Storm Laser 23823 | -5/Factory | Discovered new exit (range 15) 23938 | -5/Factory | Identified exit to Upper Caves 24401 | -5/Factory | Joined by Warlord Ranger squad 24565 | -5/Factory | Build established: Skirmisher 24879 | -5/Factory | Learned Extension terminal intel 24936 | -5/Factory | Learned 4 Testing zone layouts 25053 | -5/Factory | Learned 4 Testing zone layouts 25072 | -5/Factory | Learned Extension stockpile data 25082 | -5/Factory | Learned Quarantine scanalyzer intel 25101 | -5/Factory | Learned 2 Extension zone layouts 25131 | -5/Factory | Learned Armory trap positions 25171 | -5/Factory | Learned Armory terminal intel 25198 | -5/Factory | Repaired Hvy. Treads 25219 | -5/Factory | Learned location of 1 exit from Upper Caves 25255 | -5/Factory | Entered Extension 25256 | -5/Extension | Identified exit to Factory 25258 | -5/Extension | Loaded intel: 14 terminal locations 25418 | -5/Extension | Build established: Tank 25908 | -5/Extension | Spotted B-75 Beast 25990 | -5/Extension | Destroyed B-75 Beast 26156 | -5/Extension | Rescued a captive Derelict 26162 | -5/Extension | Rescued a captive Derelict 26280 | -5/Extension | Rescued a captive Derelict 26280 | -5/Extension | Rescued a captive Derelict 26358 | -5/Extension | Rescued a captive Derelict 26359 | -5/Extension | Rescued a captive Derelict 26517 | -5/Extension | Build established: Commander-Tank 26709 | -5/Extension | Spotted B-75 Beast 26722 | -5/Extension | Destroyed B-75 Beast 26749 | -5/Extension | Lost 4 allies 26914 | -5/Extension | Attached Gun Armor, gained temporary slots: Weapon x2 27043 | -5/Extension | Destroyed 8 combat bots 27151 | -5/Extension | Rescued a captive Derelict 27217 | -5/Extension | Rescued a captive Derelict 27217 | -5/Extension | Rescued a captive Derelict 27291 | -5/Extension | Rescued a captive Derelict 27291 | -5/Extension | Rescued a captive Derelict 27388 | -5/Extension | Rescued A7 27408 | -5/Extension | Build established: Commander-Executioner 27660 | -5/Extension | Discovered new exit (range 6) 27672 | -5/Extension | Identified exit to Cetus 27752 | -5/Extension | Entered Cetus 27752 | -5/Cetus | Accompanied by 17 allies (A7) 27757 | -5/Cetus | Acquired a Cetus Manufacturing Module code from A7 27776 | -5/Cetus | Spotted Cetus Guard 27776 | -5/Cetus | Spotted Cetus Guard 27779 | -5/Cetus | Spotted Cetus Guard 27784 | -5/Cetus | Allies destroyed Cetus Guard 27785 | -5/Cetus | Destroyed Cetus Guard 27785 | -5/Cetus | Spotted Cetus Guard 27793 | -5/Cetus | Destroyed Cetus Guard 27796 | -5/Cetus | Allies destroyed Cetus Guard 27905 | -5/Cetus | Escorted A7 to Cetus Mainframe 27925 | -5/Cetus | Discovered new exit (range 16) 27947 | -5/Cetus | Identified exit to Archives 28018 | -5/Cetus | Spotted Cetus Guard 28018 | -5/Cetus | Spotted Cetus Guard 28022 | -5/Cetus | Spotted Cetus Guard 28023 | -5/Cetus | Spotted Cetus Guard 28026 | -5/Cetus | Allies destroyed Cetus Guard 28033 | -5/Cetus | Allies destroyed Cetus Guard 28033 | -5/Cetus | Destroyed Cetus Guard 28033 | -5/Cetus | Destroyed Cetus Guard 28054 | -5/Cetus | Discovered exit to Factory (range 15) 28062 | -5/Cetus | Met Revision 17 28354 | -5/Cetus | Started Cetus Manufacturing Module 28379 | -5/Cetus | Manufactured an Enhanced Grunt 28404 | -5/Cetus | Manufactured an Enhanced Grunt 28429 | -5/Cetus | Manufactured an Enhanced Grunt 28454 | -5/Cetus | Manufactured an Enhanced Grunt 28479 | -5/Cetus | Manufactured an Enhanced Grunt 28502 | -5/Cetus | Security sweep announced 28517 | -5/Cetus | Entered Archives 28517 | -5/Archives | Accompanied by 19 allies (A7) 28518 | -5/Archives | Identified exit to Hub_04(d) 28522 | -5/Archives | Received a hacking code to weaken MAIN.C 28694 | -5/Archives | Discovered exit to Hub_04(d) (range 14) 29223 | -5/Archives | Entered Hub_04(d) 29223 | -5/Hub_04(d) | Accompanied by 17 allies 29363 | -5/Hub_04(d) | Lost 8 allies 29432 | -5/Hub_04(d) | Discovered exit to Factory (range 16) 29531 | -5/Hub_04(d) | Network Hub disabled 29538 | -5/Hub_04(d) | Spotted Lightning 29538 | -5/Hub_04(d) | Spotted Lightning 29538 | -5/Hub_04(d) | Spotted Lightning 29552 | -5/Hub_04(d) | Entered Factory 29552 | -4/Factory | Evolved 2 slots: Utility x2 29553 | -4/Factory | Identified exit to Research 29577 | -4/Factory | Lost 3 allies 29701 | -4/Factory | Repaired Hvy. Treads 29741 | -4/Factory | Build established: Scavenger-Executioner 29757 | -4/Factory | Identified exit to Upper Caves 29767 | -4/Factory | Sucked down chute 29767 | -4/Factory | Entered Waste 29812 | -4/Waste | Spotted C-40 Crusher 29832 | -4/Waste | Destroyed C-40 Crusher 29864 | -4/Waste | Spotted C-40 Crusher 29871 | -4/Waste | Spotted C-40 Crusher 29875 | -4/Waste | Spotted C-40 Crusher 29882 | -4/Waste | Destroyed C-40 Crusher 29892 | -4/Waste | Destroyed C-40 Crusher 29898 | -4/Waste | Crushed by Compactor (1 part destroyed, 1 dropped) 29901 | -4/Waste | Crushed by Compactor (1 part destroyed, 2 dropped) 29904 | -4/Waste | Crushed by Compactor (1 part destroyed, 2 dropped) 29907 | -4/Waste | Crushed by Compactor (1 part destroyed) 29910 | -4/Waste | Crushed by Compactor (1 part destroyed, 2 dropped) 29912 | -4/Waste | Destroyed C-40 Crusher 29941 | -4/Waste | Lost 5 parts (2p3w) 29971 | -4/Waste | Spotted C-40 Crusher 29971 | -4/Waste | Destroyed C-40 Crusher 30115 | -4/Waste | Spotted C-40 Crusher 30121 | -4/Waste | Destroyed C-40 Crusher 30187 | -4/Waste | Discovered new exit (range 12) 30365 | -4/Waste | Warlord forces began an assault 30375 | -4/Waste | Build established: Scavenger-Tank 30617 | -4/Waste | Identified exit to Factory 30619 | -4/Waste | Entered Factory 30619 | -4/Factory | Accompanied by 17 allies 30713 | -4/Factory | Watched by a mysterious "MATRIX" hacker. 30766 | -4/Factory | Lost 8 allies 30857 | -4/Factory | Lost 5 allies 31545 | -4/Factory | Discovered exit to Research (range 7) 31804 | -4/Factory | Discovered exit to Research (range 7) 31925 | -4/Factory | System corruption reached 10% 32123 | -4/Factory | Garrison activated, responded to threat 32492 | -4/Factory | Learned location of 1 exit from Upper Caves 32554 | -4/Factory | Learned Quarantine stockpile data 32604 | -4/Factory | Learned Armory trap positions 32644 | -4/Factory | Learned Research emergency access door positions 32694 | -4/Factory | Learned Research trap positions 32726 | -4/Factory | Learned Research trap positions 32768 | -4/Factory | Loaded intel: 84 trap records 32818 | -4/Factory | Learned location of 1 exit from Armory 32823 | -4/Factory | Entered Upper Caves 32824 | -4/Upper Caves | Identified exit to Upper Caves 33453 | -4/Upper Caves | Learned location of Quarantine (-3) 33903 | -4/Upper Caves | Attacked by a delusional Derelict stockpiling parts 34040 | -4/Upper Caves | Encountered a Warlord checkpoint 34288 | -4/Upper Caves | Entered another Upper Caves area 34956 | -4/Upper Caves | Entered a destroyed Warlord outpost 34964 | -4/Upper Caves | Learned Research trap positions 35049 | -4/Upper Caves | Discovered new exit (range 7) 35746 | -4/Upper Caves | Identified exit to Zhirov 35795 | -4/Upper Caves | Entered Zhirov 35795 | -4/Zhirov | Discovered new exit (range 3) 35825 | -4/Zhirov | Met Zhirov 35860 | -4/Zhirov | Learned location of Testing (-2) 35860 | -4/Zhirov | Learned location of Command (-1) 35869 | -4/Zhirov | Zhirov requested help retrieving the SGEMP Prototype 35893 | -4/Zhirov | Found Alien Artifact 35893 | -4/Zhirov | Identified Integrated Reactor 35893 | -4/Zhirov | Installed Integrated Reactor, increased core energy generation (+10) 35917 | -4/Zhirov | Found Alien Artifact 36149 | -4/Zhirov | Build established: Scavenger-Mutant 36238 | -4/Zhirov | Identified exit to Proximity Caves 36239 | -4/Zhirov | Entered Proximity Caves 36247 | -3/Proximity Caves | Attracted the attention of an 0b10 checkpoint 36427 | -3/Proximity Caves | Encountered a Derelict sapper outpost 36741 | -3/Proximity Caves | Build established: Derelict-Skirmisher 38258 | -3/Proximity Caves | Discovered exit to Research (range 12) 38363 | -3/Proximity Caves | Entered Research 38363 | -3/Research | Evolved 2 slots: Utility x1, Weapon x1 38364 | -3/Research | Identified exit to Armory 38365 | -3/Research | Loaded intel: 90 trap records 38563 | -3/Research | Revision forces began assault on 0b10 38584 | -3/Research | Met up with Revision 17++ 39063 | -3/Research | Research terminal network offline 39394 | -3/Research | Found Prototype Hackware 39394 | -3/Research | Identified Exp. Hacking Suite 39893 | -3/Research | Identified exit to Quarantine 39969 | -3/Research | Entered Quarantine 39971 | -3/Quarantine | Loaded intel: 3 scanalyzer locations 40071 | -3/Quarantine | Found Alien Energy Cannon 40071 | -3/Quarantine | Identified Core Cannon 40433 | -3/Quarantine | Cryocooling Duct disabled 40448 | -3/Quarantine | Ambient heat levels rising (+20) 40448 | -3/Quarantine | Non-combat units ordered to evacuate 40622 | -3/Quarantine | Build established: Tank 40684 | -3/Quarantine | Found Alien Artifact 40684 | -3/Quarantine | Identified Phase Armor 40946 | -3/Quarantine | Discovered new exit (range 3) 40948 | -3/Quarantine | Identified exit to Research 40950 | -3/Quarantine | Entered Research 40950 | -2/Research | Evolved 2 slots: Utility x2 40951 | -2/Research | Loaded intel: 71 trap records 41085 | -2/Research | Identified exit to Testing 41700 | -2/Research | First assault squad dispatched 41797 | -2/Research | Found Prototype Processor 41797 | -2/Research | Identified Exp. Melee Analysis Suite 41896 | -2/Research | Core integrity fell below 50% 41916 | -2/Research | Garrison activated, responded to threat 41919 | -2/Research | Identified Transdimensional Reconstructor 41919 | -2/Research | Warped through subspace 41945 | -2/Research | Lost 6 parts (1p2u3w) 42010 | -2/Research | Lost 8 parts (2n5u1w) 42070 | -2/Research | Lost 5 parts (2p1u2w) 42116 | -2/Research | Found Prototype Launcher 42116 | -2/Research | Identified Mni. Smartbomb Launcher 42425 | -2/Research | System corruption reached 10% 42473 | -2/Research | Build established: Scavenger-Tank 42477 | -2/Research | Core integrity fell below 20% 42587 | -2/Research | Entered Testing 42599 | -2/Testing | Lost 4 parts (1n1u2w) 42701 | -2/Testing | Found Prototype Protection 42701 | -2/Testing | Identified SHELL Armor 42706 | -2/Testing | Found Prototype Protection 42706 | -2/Testing | Identified Med. Regenerative Plating 42714 | -2/Testing | Found Med. Regenerative Plating 42990 | -2/Testing | System corruption reached 30% 43117 | -2/Testing | Lost 3 parts (1p1n1w) 43239 | -2/Testing | Crushed by falling debris 43239 | -2/Testing | Smashed by cave-in Last Messages --------------- 43215_ R-10 Processor collects Adv. Remote Datajack. 43217_ Sneak attack on U-05 Engineer. 43217_ Destroyed Wheel. 43217_ Destroyed Welding Torch. 43217_ U-05 Engineer destroyed. 43219_ R-10 Processor collects Gamma Rifle. 43222_ R-10 Processor collects Unknown Hover Unit. 43226_ R-10 Processor collects Mic. Antimatter Reactor. 43229_ System corrupted: Mic. Antimatter Reactor rejected. 43229_ R-10 Processor collects Adv. Heat Sink. 43229_ Acquired Mic. Antimatter Reactor. 43233_ Med. Regenerative Plating destroyed. 43234_ Falx follow-up attack on P-80 Master. 43238_ K-01 Serf collects debris. 43239_ The unstable cave ceiling collapses. 43239_ Crushed by falling debris. Map ----- +----------------------------------------------------+ | ???????????????????# ####### ## # ? | | ???????????????????# " ## # """"" ? | | ???????????????????# ????????????????????????? | | ???????????????????#####????????????????????????? | | ?????????????????????# ????????????????????????? | | ?????????????????????# ?????????????????????????# | | ?????????????????????# ????? ???????????????????? | | ?????????????????????# ????? ???????????????????? | | ?????????????????????# ????? #??????????????????? | | ?????????????????????# ????? #??????? ??????????? | | ?????????????????????# ????# #?????? ???????????? | | ????????????########## ????# #????? ???????????? | | ????????????########## ????# #???? ???????????? | | ????????????##!!=!########### ##### #?????????? | | ????????????###"%"### * ^ * #?????????? | | ????????????##"%=T### ^ k #?????????? | | ????????????##!!%#### "" """ """ #?????????? | | ????????????##""!!### "" u""" """ #?????????? | | ????????????##T ! ! "" R"" """ #??????????? | | ????????????## % ^ % #??????????? | | ???################## " " """ #??????????? | | ???# # "" p "" """ #??????????# | | ???# """ """ # = "" """ ???? | | ???# """ """ # uu%p ???? | | ???# """ """ + uu! """T""" ???? | | ???# # #######@########### ?????????? | | ???# # ###########????????????????????# | | ???# # # #???????????????????? | | ???# # # #???????????????????? | | ???########### # #???????????????????? | | ???# #???##### # ] #???????????????????? | | ???# #???# # + #???????????????????? | | ???# ##### # # #???????????????????? | | ???# # # #= #???????????????????? | | ???####### # # #???????????????????? | | ########## ################????????????????????# | | ## #???????????????????????????????????? | | ## #???????????????????????????????????? | | ###+############?????????????????????????? | | """ # ?????????????????????????# | | "F" + ????????????????????????? | | " # ?????????????????????????# | | """ ########+#######?????????????????????????" | | """ #??# #???????????????????????????R | | #??# #??????????????????????????? | | #########??# ###????????????????????????? | | ???????????# # ????????????????????????? | | ???????????# """ """ ###????????????????????????? | | ???????????# """ T" #???????????????????????????# | | ???????????# """ """ #???????????????????????????? | +----------------------------------------------------+ Best States ------------- Heat Dissipation 125 Energy Generation 55 Energy Capacity 1100 Matter Stores 300 Matter Capacity 800 Sight Range 22 Robot Scan Range 19 Terrain Scan Range 24 Terrain Scan Density 10 Jamming Range 16 Additional Mass Support 6 Corruption Block 20 Armor Coverage 2250 Resistance: EX 50 Resistance: EM 15 Phase Shifting 15 Evasion (%) 55 Targeting Accuracy 6 Launcher Accuracy 40 Target Analysis 8 Core Analysis 6 Recoil Reduction 6 Kinecelleration 40 Offensive Hacking 26 Defensive Hacking 12 Authchip Count 2 Item Schematics ----------------- Assault Drone Bay | -4/Zhirov | Free Exp. Heat Sink | -4/Zhirov | Free Exp. Optical Array | -4/Zhirov | Free Imp. Arc Thrower | -4/Zhirov | Free Adv. Dynamic Insulation System | -2/Testing | Archive Exp. Shock Absorption System | -2/Testing | Archive Robot Schematics ------------------ A-02 Transporter | -2/Testing | Archive G-73 Enforcer | -2/Testing | Archive W-44 Eye | -2/Testing | Archive Fabricated ------------ Nothing Repaired ---------- Grenade Launcher | 43% | -8/Materials Grenade Launcher | 51% | -8/Materials Hvy. Treads | 46% | -5/Factory Hvy. Treads | 16% | -4/Factory Studied --------- Rocket Launcher | -8/Materials | Hacked Grenade Launcher | -8/Materials | Hacked Hvy. Assault Rifle | -8/Materials | Hacked Wheel | -8/Materials | Hacked KE Penetrator | -4/Factory | Hacked Coil Gun | -4/Factory | Hacked Hvy. Rocket Launcher | -4/Factory | Hacked Antimatter Reactor | -4/Factory | Hacked Alien Tech Used ----------------- Integrated Reactor Core Cannon Phase Armor Transdimensional Reconstructor Achievements -------------- None Challenges ------------ None Game ------ Seed LightningMolecularCarapace Manual? 0 Play Time 05:58:01 Cumulative 447.5 hours Start 2026.03.10 @ 21:43:29 End 2026.03.11 @ 16:42:18 Sessions 3 Manual Loads 0 Difficulty Rogue Special Mode None Game No. 353 Rogue 353 Adventurer 0 Explorer 0 Win Type - Total 6 Types 4/0/0/0/0/0/0/2/0/0 Lore% 72 Gallery% 71 Achievement% 58 Wizard Run 0 Options --------- Layout 1 ASCII 0 Keyboard 0 Movement Mouse Keybinds 0 Fullscreen 1 Font 32/SmallcapsGlow Map View 50x35 Zoom Use 0% Tactical HUD 1 Map Filters NONE Filters NONE Steam 1 RUN: 87fb3e86-a810-4d8e-b02c-71377e5bd237